bitfinex/quotes_ETHUSD_20250916
["timestamp","ask_amount","ask_price","bid_price","bid_amount"]
[1758046653832,2.74558731,4497.9,4497.1,3.13084892]
[1758046654210,2.74558731,4497.9,4497.2,2.22360068]
[1758046654846,2.76682715,4497.8,4497.1,0.9072]
[1758046655040,2.76682715,4497.8,4497.1,3.13083743]
[1758046655414,2.76682715,4497.8,4497.1,0.9072]
[1758046655415,0.54351584,4497.8,4497.1,0.9072]
[1758046655749,0.52232201,4497.9,4497.3,2.22351906]
[1758046655917,0.52232201,4497.9,4497.4,0.02223506]
[1758046656118,0.52232201,4497.9,4497.4,0.4433]
[1758046656573,2.74559154,4497.9,4497.4,0.4433]
[1758046657041,2.54452248,4497.8,4497.4,0.4433]
[1758046657400,2.54452248,4497.8,4497.1,3.13084187]
[1758046658078,0.32119915,4497.8,4497.2,2.22360048]
[1758046658631,2.54450843,4497.8,4497.1,3.13084023]
[1758046659544,0.32119915,4497.8,4497.2,2.22359529]
[1758046659740,0.52232201,4497.9,4497.7,0.3122]
[1758046659958,2.2231188,4498.2,4497.5,0.02223457]
[1758046660143,2.22321029,4498.1,4497.5,0.02223457]
[1758046660340,0.4664,4498.1,4497.5,0.02223457]
[1758046660542,0.099,4497.6,4497.1,0.001]
[1758046661063,2.32244991,4497.6,4497.1,0.001]
[1758046661270,2.58386161,4497.5,4497.1,0.001]
[1758046661446,0.36039499,4497.5,4497.1,0.001]
[1758046661770,2.5838758,4497.5,4497.1,0.001]
[1758046662069,3.0502758,4497.5,4497.1,0.001]
[1758046662263,0.82679499,4497.5,4497.1,0.001]
[1758046662472,3.05025358,4497.5,4497.1,0.001]
[1758046662970,3.05025259,4497.5,4497.1,0.001]
[1758046663173,0.82679499,4497.5,4497.1,0.001]
[1758046663373,0.5768,4497.5,4497.1,0.001]
[1758046664138,2.8002739,4497.5,4497.1,0.001]
[1758046665473,0.1104,4497.5,4497.1,0.001]
[1758046665980,0.5768,4497.5,4497.1,0.001]
[1758046666276,0.099,4497.2,4497.1,0.001]
[1758046666596,2.89401228,4497.2,4497.1,0.001]
[1758046666788,3.53791228,4497.2,4497.1,0.001]
[1758046668078,3.74475885,4497.2,4497.1,0.001]
[1758046668292,3.95160542,4497.2,4497.1,0.001]
[1758046669077,1.55049963,4497.2,4497.1,0.001]
[1758046669243,1.34365306,4497.2,4497.1,0.001]
[1758046669439,1.13680649,4497.2,4497.1,0.001]
[1758046669678,3.53791228,4497.2,4497.1,0.001]
[1758046669880,1.55049963,4497.2,4497.1,0.001]
[1758046670088,0.08910224,4498.1,4497.1,0.3132]
[1758046670379,0.1104,4497.6,4497.2,2.24582682]
[1758046670575,0.1104,4497.6,4497.5,0.3122]
[1758046671180,0.1104,4497.6,4497.5,1.2184]
[1758046671350,0.52408698,4497.9,4497.5,3.44185747]
[1758046671568,0.1104,4497.9,4497.6,0.4433]
[1758046672164,0.1104,4497.9,4497.8,0.3122]
[1758046672365,0.89028056,4498.1,4497.8,0.3122]
[1758046672566,0.1104,4498.2,4497.9,0.90443259]
[1758046672766,0.52408698,4498.2,4498.1,0.2889]
[1758046673076,0.41368698,4498.3,4498.2,2.22311146]
[1758046673279,0.002,4498.4,4498.3,3.39416204]
[1758046673580,0.002,4498.4,4498.3,1.1711]
[1758046673786,0.002,4498.4,4498.3,1.19333062]
[1758046674281,0.002,4498.4,4498.3,1.1711]
[1758046676776,0.002,4498.4,4498.3,3.39416204]
[1758046677302,0.002,4498.4,4498.3,1.1711]
[1758046679466,0.002,4498.4,4498.3,0.7427]
[1758046679704,0.002,4498.4,4498.3,0.7583]
[1758046681420,0.002,4498.4,4498.3,3.44456204]
[1758046681572,0.002,4498.4,4498.3,3.46679266]
[1758046681999,0.002,4498.4,4498.3,1.24373062]
[1758046682395,0.002,4498.4,4498.3,4.95473062]
[1758046682598,0.002,4498.4,4498.3,4.9325]
[1758046682824,0.002,4498.4,4498.3,4.4693]
[1758046683215,0.002,4498.4,4498.3,0.7583]
[1758046683380,0.002,4498.4,4498.3,4.9315]
[1758046683779,0.002,4498.4,4498.3,0.2889]
[1758046684010,0.002,4498.4,4497.9,0.1104]
[1758046684011,0.5855,4498.4,4497.9,3.8204]
[1758046685024,2.80852167,4498.4,4497.9,0.1104]
[1758046685180,1.09988048,4498.4,4497.9,3.8204]
[1758046685380,1.09988048,4498.4,4497.9,6.0436394]
[1758046685581,0.5855,4498.4,4497.9,3.71]
[1758046685796,0.1104,4498.3,4497.9,3.71]
[1758046687120,0.1104,4498.3,4497.9,6.40264986]
[1758046687320,0.1104,4498.3,4497.9,4.1794]
[1758046687756,2.3334711,4498.3,4497.9,3.71]
[1758046688066,2.3334711,4498.3,4497.3,2.22352916]
[1758046688067,0.0998,4498.0,4497.2,2.22360579]
[1758046688237,0.0998,4498.0,4497.4,3.71]
[1758046688238,0.1104,4497.9,4497.4,3.71]
[1758046688418,0.1104,4497.9,4497.5,0.4694]
[1758046688625,0.1104,4497.9,4497.5,2.69284244]
[1758046688825,0.1104,4497.9,4497.6,2.22340552]
[1758046689247,0.1104,4497.9,4497.8,0.2985]
[1758046690634,5.04026493,4498.4,4497.8,4.9411]
[1758046690635,0.002,4498.4,4497.8,4.9411]
[1758046690847,0.1104,4498.3,4497.9,3.17809233]
[1758046691034,0.1104,4498.3,4498.2,0.2985]
[1758046691419,0.1104,4498.3,4498.2,1.2311]
[1758046692461,0.1104,4498.3,4498.2,0.7679]
[1758046693241,0.1104,4498.3,4498.1,3.71]
[1758046695173,0.1104,4498.3,4498.2,0.2985]
[1758046695675,0.1104,4498.3,4498.2,1.25333111]
[1758046695877,0.1104,4498.3,4498.2,1.2311]
[1758046696251,0.1104,4498.3,4498.2,0.7679]
[1758046696454,0.1104,4498.3,4498.2,0.2985]
[1758046696661,0.3859,4498.3,4498.1,3.71]
[1758046696862,0.4845,4498.2,4497.6,0.1104]
[1758046697062,5.03826493,4498.1,4497.7,3.71]
[1758046697267,0.1104,4498.0,4497.7,3.71]
[1758046698167,0.5949,4498.0,4497.7,3.71]
[1758046698391,5.31106493,4497.8,4497.7,3.71]
[1758046698610,2.2233586,4497.7,4497.4,3.71]
[1758046698912,0.41333223,4497.6,4497.4,3.71]
[1758046699470,2.49355747,4497.5,4497.4,3.71]
[1758046699674,2.49355747,4497.5,4497.1,5.419]
[1758046699675,2.22355751,4497.3,4497.1,5.419]
[1758046699983,2.22355751,4497.3,4497.1,3.711]
[1758046700365,2.33392168,4497.4,4497.1,3.711]
[1758046700573,2.70802168,4497.4,4497.1,3.711]
[1758046700823,2.22358205,4497.3,4497.1,3.711]
[1758046701164,0.30567871,4497.2,4497.1,0.001]
[1758046701471,7.84537072,4497.2,4497.1,0.001]
[1758046701668,8.25873653,4497.2,4497.1,0.001]
[1758046701906,15.62233118,4497.2,4497.1,0.001]
[1758046703214,20.66059611,4497.2,4497.1,0.001]
[1758046703501,22.87855492,4497.2,4497.1,0.001]
[1758046703710,17.84028999,4497.2,4497.1,0.001]
[1758046704066,17.66278999,4497.2,4497.1,0.001]
[1758046706702,17.84128999,4497.2,4497.1,0.001]
[1758046706899,22.87955492,4497.2,4497.1,0.001]
[1758046709067,22.87865824,4497.2,4497.1,0.001]
[1758046709477,22.87769426,4497.2,4497.1,0.001]
[1758046711192,17.83942933,4497.2,4497.1,0.001]
[1758046711588,22.87769426,4497.2,4497.1,0.001]
[1758046711815,17.83942933,4497.2,4497.1,0.001]
[1758046712051,17.17742933,4497.2,4497.1,0.001]
[1758046712223,17.64922933,4497.2,4497.1,0.001]
[1758046713004,17.64922933,4497.2,4497.1,0.2922]
[1758046713005,8.3291644,4497.2,4497.1,0.2922]
[1758046713200,9.82320559,4497.2,4497.1,0.7447]
[1758046713508,14.86147052,4497.2,4497.1,1.2396]
[1758046713818,14.86147052,4497.2,4497.1,0.2922]
[1758046714019,14.86147052,4497.2,4497.1,0.001]
[1758046714241,16.61427055,4497.2,4497.1,0.001]
[1758046715206,16.61412915,4497.2,4497.1,0.001]
[1758046716955,17.18492915,4497.2,4497.1,0.001]
[1758046717734,16.61423701,4497.2,4497.1,0.001]
[1758046718350,17.18503701,4497.2,4497.1,0.001]
[1758046718552,16.71323701,4497.2,4497.1,0.001]
[1758046718753,16.61423701,4497.2,4497.1,0.001]
[1758046718955,17.18503701,4497.2,4497.1,0.001]
[1758046719434,16.61423701,4497.2,4497.1,0.001]
[1758046719632,11.57597208,4497.2,4497.1,1.2396]
[1758046719838,16.13814236,4497.2,4497.1,1.2396]
[1758046720156,16.61218913,4497.2,4497.1,1.2396]
[1758046720723,16.13814236,4497.2,4497.1,1.2396]
[1758046721251,16.61231626,4497.2,4497.1,1.2396]
[1758046723056,7.38787743,4497.2,4497.1,1.2396]
[1758046723368,1.71,4498.0,4497.1,1.2396]
[1758046723369,2.22334395,4497.8,4497.1,1.2396]
[1758046723551,0.1104,4497.4,4497.2,0.96963605]
[1758046723924,0.1104,4497.4,4497.3,1.2386]
[1758046724421,6.04590691,4497.4,4497.3,1.2386]
[1758046724622,2.22360579,4497.2,4497.1,0.001]
[1758046724823,10.97487072,4497.2,4497.1,0.001]
[1758046725043,10.97487072,4497.2,4497.1,0.2922]
[1758046725222,10.97487072,4497.2,4497.1,1.2396]
[1758046725419,11.48609136,4497.2,4497.1,0.001]
[1758046725619,13.88980172,4497.2,4497.1,0.001]
[1758046725852,14.90074011,4497.2,4497.1,0.001]
[1758046726032,17.90074011,4497.2,4497.1,0.001]
[1758046726219,18.07824011,4497.2,4497.1,0.001]
[1758046727233,17.90074011,4497.2,4497.1,0.001]
[1758046727437,17.90074011,4497.2,4496.7,0.001]
[1758046727438,2.22380359,4496.8,4496.7,0.001]
[1758046727763,11.05902423,4496.8,4496.7,0.001]
[1758046728005,12.28229175,4496.8,4496.7,0.001]
[1758046729762,12.28288403,4496.8,4496.7,0.001]
[1758046730126,12.28288386,4496.8,4496.7,0.001]
[1758046730326,13.73991766,4496.8,4496.7,0.001]
[1758046731357,13.56311766,4496.8,4496.7,0.001]
[1758046732964,9.27751766,4496.8,4496.7,1.2396]
[1758046733124,11.53348386,4496.8,4496.7,1.2396]
[1758046734026,11.63248386,4496.8,4496.7,0.001]
[1758046734263,12.11078386,4496.8,4496.7,0.001]
[1758046735163,11.53348386,4496.8,4496.7,0.001]
[1758046735892,11.53348386,4496.8,4496.7,1.2245]
[1758046736369,12.91811596,4496.8,4496.7,0.3]
[1758046736748,12.91811596,4496.8,4496.7,0.001]
[1758046736971,13.01711596,4496.8,4496.7,0.001]
[1758046739768,12.91811596,4496.8,4496.7,0.001]
[1758046740081,12.91811596,4496.8,4496.7,0.3]
[1758046740290,9.20511596,4496.8,4496.7,0.3]
[1758046740484,12.91711596,4496.8,4496.7,0.3]
[1758046740983,12.91711596,4496.8,4496.7,1.2245]
[1758046742789,7.82048386,4496.8,4496.7,1.2245]
[1758046742964,11.53348386,4496.8,4496.7,1.2245]
[1758046744277,11.53369849,4496.8,4496.7,1.2245]
[1758046747399,11.53269849,4496.8,4496.7,1.2245]
[1758046747783,0.8878949,4496.8,4496.7,1.2245]
[1758046748013,0.41502738,4497.4,4496.8,2.22378834]
[1758046748193,0.002,4497.4,4496.9,0.94673754]
[1758046748394,0.002,4497.4,4497.3,0.299]
[1758046748791,0.002,4497.4,4497.3,1.24573556]
[1758046749888,0.002,4497.4,4497.3,1.2235]
[1758046754224,0.002,4497.4,4496.9,0.4761]
[1758046754425,0.1104,4497.3,4497.1,0.9245]
[1758046754630,0.1104,4497.3,4496.8,0.9245]
[1758046754949,2.22369845,4497.1,4496.9,0.9245]
[1758046755118,2.3339913,4497.3,4497.0,1.2235]
[1758046755319,2.3339913,4497.3,4497.1,0.9245]
[1758046755517,2.2839913,4497.3,4497.2,0.299]
[1758046755715,2.22370652,4497.0,4496.7,0.001]
[1758046755920,2.22370652,4497.0,4496.7,0.9255]
[1758046756116,0.0604,4497.3,4496.9,0.299]
[1758046756315,0.0604,4497.3,4497.0,0.9245]
[1758046756528,0.0604,4497.3,4497.2,0.299]
[1758046756951,0.002,4497.4,4497.2,1.36808605]
[1758046757152,0.002,4497.4,4497.2,1.33605]
[1758046757459,0.002,4497.4,4497.3,0.9245]
[1758046757820,0.002,4497.4,4497.3,1.2235]
[1758046759475,0.002,4497.4,4497.3,3.46929191]
[1758046759770,0.002,4497.4,4497.3,4.43294485]
[1758046760759,0.002,4497.4,4497.3,4.54334485]
[1758046761061,0.002,4497.4,4497.3,4.52110929]
[1758046762935,0.002,4497.4,4497.3,5.31310929]
[1758046763138,0.002,4497.4,4497.3,9.02510929]
[1758046765788,0.002,4497.4,4497.3,12.02510929]
[1758046775000,0.002,4497.6,4497.3,12.02510929]
[1758046775001,0.002,4497.6,4497.5,3.01545747]
[1758046775183,0.002,4497.6,4497.5,17.53857676]
[1758046775370,0.002,4497.6,4497.5,18.74244219]
[1758046775896,0.002,4497.6,4497.5,18.83149107]
[1758046776695,0.002,4497.6,4497.5,25.83149107]
[1758046778960,0.002,4498.0,4497.5,25.83149107]
[1758046778961,0.002,4498.0,4497.9,3.01525974]
[1758046779182,0.002,4498.0,4497.9,16.5835058]
[1758046779396,0.002,4498.0,4497.9,17.78737321]
[1758046779862,0.002,4498.0,4497.9,17.89991482]
[1758046780064,0.002,4498.0,4497.9,17.87641793]
[1758046781234,0.002,4498.0,4497.9,17.98931401]
[1758046781600,0.002,4498.4,4498.0,3.792]
[1758046781833,0.002,4498.4,4498.3,9.05994954]
[1758046782131,0.002,4498.4,4498.3,13.18564954]
[1758046782532,0.002,4498.4,4498.3,14.10644954]
[1758046783904,0.002,4498.4,4498.3,21.10644954]
[1758046785847,0.002,4498.4,4498.3,24.20431582]
[1758046786162,0.002,4498.4,4498.3,26.41937662]
[1758046786322,0.002,4498.4,4498.3,20.94509973]
[1758046786845,0.002,4498.4,4498.3,21.38759973]
[1758046787050,0.002,4498.4,4498.3,25.59759973]
[1758046789452,0.002,4498.4,4498.3,30.62937662]
[1758046790245,0.002,4498.4,4498.3,25.59759973]
[1758046792269,0.002,4498.4,4498.3,25.11929973]
[1758046793150,0.002,4498.4,4498.3,25.58329973]
[1758046793351,0.002,4498.4,4498.3,24.67679973]
[1758046793751,0.002,4498.4,4498.3,24.37149973]
[1758046795488,0.002,4498.4,4498.3,24.37249973]
[1758046795785,0.101,4498.4,4498.3,19.33972284]
[1758046795949,0.002,4498.4,4498.3,24.37149973]
[1758046796148,0.002,4498.4,4498.3,24.67239973]
[1758046796447,0.002,4498.4,4498.3,25.61829973]
[1758046805993,0.002,4498.4,4498.3,27.67239973]
[1758046806295,0.002,4498.4,4498.3,30.07239973]
[1758046808512,0.002,4498.4,4498.3,30.52119973]
[1758046808803,0.002,4498.4,4498.3,31.01829973]
[1758046809606,1e-08,4498.5,4498.4,6.01501262]
[1758046809806,1e-08,4498.5,4498.4,8.70690984]
[1758046809973,1e-08,4498.5,4498.4,9.00780984]
[1758046810176,1e-08,4498.5,4498.4,11.40780984]
[1758046811216,1e-08,4498.5,4498.4,11.49684702]
[1758046811518,1e-08,4498.5,4498.4,15.28182391]
[1758046811687,0.36860002,4498.7,4498.6,2.22291379]
[1758046812003,0.36860002,4498.7,4498.6,9.72203976]
[1758046812307,0.46760002,4498.7,4498.6,10.09063978]
[1758046813208,0.002,4498.8,4498.7,6.01486438]
[1758046813804,0.2882,4498.8,4498.7,13.44664127]
[1758046814028,0.5876,4498.8,4498.7,7.62286438]
[1758046814322,0.7748,4498.8,4498.7,8.93086438]
[1758046814521,0.7748,4498.8,4498.7,11.33086438]
[1758046814723,0.5876,4498.8,4498.7,11.33086438]
[1758046815400,0.5876,4498.8,4498.7,16.36264127]
[1758046815984,0.002,4498.8,4498.7,19.78390008]
[1758046816419,0.002,4498.8,4498.7,15.69802319]
[1758046816636,0.002,4498.8,4498.7,15.78706276]
[1758046819097,0.002,4498.8,4498.7,14.84116276]
[1758046819726,0.002,4498.8,4498.7,15.78706276]
[1758046820425,0.002,4499.1,4498.7,15.78706276]
[1758046820426,0.002,4499.1,4498.9,6.01476556]
[1758046820626,0.002,4499.1,4498.9,16.55552034]
[1758046822918,0.002,4499.0,4498.9,17.89135019]
[1758046823729,0.002,4499.0,4498.9,16.64455019]
[1758046823904,0.002,4499.0,4498.9,16.94545019]
[1758046824106,0.002,4499.0,4498.9,17.89135019]
[1758046824704,0.002,4499.0,4498.9,15.89135019]
[1758046824900,0.002,4499.0,4498.9,19.59935019]
[1758046825334,0.002,4499.0,4498.9,18.65345019]
[1758046825649,0.002,4499.0,4498.9,18.35255019]
[1758046826244,0.002,4499.0,4498.9,18.65505019]
[1758046826447,0.002,4499.0,4498.9,19.56955019]
[1758046826747,0.002,4499.0,4498.9,15.86155019]
[1758046826952,0.002,4499.0,4498.9,18.35255019]
[1758046827155,0.002,4499.0,4498.9,19.56955019]
[1758046828234,0.002,4499.0,4498.9,18.35255019]
[1758046828928,0.101,4499.0,4498.9,14.64455019]
[1758046829138,0.5816,4499.0,4498.9,18.35255019]
[1758046829719,0.101,4499.0,4498.9,18.35255019]
[1758046830021,0.002,4499.0,4498.9,18.35255019]
[1758046830505,0.2873,4499.0,4498.9,18.35255019]
[1758046830900,0.002,4499.0,4498.9,18.35255019]
[1758046831645,0.101,4499.0,4498.9,18.35255019]
[1758046831850,0.5816,4499.0,4498.9,25.35255019]
[1758046832339,0.101,4499.0,4498.9,20.85255019]
[1758046832542,0.7688,4499.0,4498.9,13.93076556]
[1758046832705,0.7688,4499.0,4498.9,17.63776556]
[1758046836461,0.7688,4499.0,4498.9,20.03776556]
[1758046836663,0.101,4499.0,4498.9,20.03776556]
[1758046836813,0.002,4499.0,4498.9,20.34026556]
[1758046837040,0.002,4499.0,4498.9,23.47272437]
[1758046837247,0.002,4499.0,4498.9,24.26472437]
[1758046837441,0.002,4499.0,4498.9,24.37512437]
[1758046837858,1e-08,4499.1,4499.0,5.22271615]
[1758046838082,1e-08,4499.1,4499.0,8.35517496]
[1758046838251,1e-08,4499.1,4499.0,8.65767496]
[1758046838452,1e-08,4499.1,4499.0,11.05767496]
[1758046841687,0.002,4499.3,4499.2,3.01461735]
[1758046841868,0.002,4499.3,4499.2,11.77562041]
[1758046842055,0.002,4499.3,4499.2,14.54399201]
[1758046842251,0.002,4499.3,4499.2,16.94399201]
[1758046845597,0.002,4499.3,4499.2,19.94399201]
[1758046845798,0.002,4499.3,4499.2,20.94885506]
[1758046847170,0.002,4499.3,4499.2,19.73185506]
[1758046847396,0.002,4499.3,4499.2,20.03435506]
[1758046847570,0.002,4499.3,4499.2,20.94885506]
[1758046847767,0.002,4499.3,4499.2,21.03788392]
[1758046852084,0.002,4499.3,4499.2,28.03788392]
[1758046853594,0.002,4499.5,4499.3,6.01456795]
[1758046853791,0.002,4499.5,4499.4,11.16970254]
[1758046853990,0.002,4499.5,4499.4,12.37117736]
[1758046854195,0.101,4499.5,4499.4,11.23649731]
[1758046854801,0.002,4499.5,4499.4,11.23649731]
[1758046857093,0.002,4499.5,4499.4,11.54769731]
[1758046857630,0.002,4499.5,4499.4,11.99959731]
[1758046857826,0.002,4499.5,4499.4,12.45829731]
[1758046861453,0.002,4499.5,4499.4,11.99959731]
[1758046861619,0.002,4499.5,4499.4,11.23649731]
[1758046861817,0.002,4499.5,4499.4,18.23649731]
[1758046862036,0.002,4499.5,4499.4,18.54769731]
[1758046862256,0.002,4499.5,4499.4,19.45829731]
[1758046862483,0.1981,4501.9,4499.5,6.01446916]
[1758046862624,0.461,4500.9,4500.1,3.792]
[1758046862823,0.461,4500.9,4500.1,11.87099456]
[1758046863048,0.52100001,4500.8,4500.1,14.70067284]
[1758046863570,0.451,4500.6,4500.1,14.24877284]
[1758046863776,0.451,4500.6,4500.1,15.71197061]
[1758046864843,0.451,4500.6,4500.1,22.71197061]
[1758046865738,0.101,4500.2,4500.1,22.40077061]
[1758046865946,0.552,4500.2,4500.1,20.93757284]
[1758046866666,0.7392,4500.2,4500.1,20.14557284]
[1758046866873,0.552,4500.2,4500.1,20.14557284]
[1758046867236,0.101,4500.2,4500.1,20.14557284]
[1758046867573,0.1019,4500.2,4500.1,20.14557284]
[1758046867790,0.002,4500.2,4500.1,20.14557284]
[1758046867958,0.002,4500.2,4500.1,22.67473165]
[1758046868295,0.002,4500.2,4500.1,23.46673165]
[1758046868445,0.002,4500.2,4500.1,24.37733165]
[1758046870442,0.002,4500.2,4500.1,23.15553165]
[1758046871038,0.002,4500.2,4500.1,23.46673165]
[1758046872587,0.002,4500.2,4500.1,23.92543165]
[1758046872897,0.002,4500.2,4500.1,24.37733165]
[1758046877416,0.101,4500.2,4500.1,23.15553165]
[1758046877782,0.101,4500.2,4500.1,19.44953165]
[1758046877987,0.552,4500.2,4500.1,20.93657284]
[1758046878199,0.552,4500.2,4500.1,17.23157284]
[1758046878434,0.552,4500.2,4500.1,20.93657284]
[1758046881172,0.101,4500.2,4500.1,11.8174]
[1758046881425,0.7392,4500.2,4500.1,15.5224]
[1758046881870,0.7392,4500.2,4500.1,8.8174]
[1758046882070,0.7392,4500.2,4500.1,12.5224]
[1758046883415,0.7392,4500.2,4500.1,14.74457284]
[1758046883613,0.7392,4500.2,4500.1,12.5224]
[1758046884515,0.7392,4500.2,4500.1,14.74457284]
[1758046884832,0.002,4500.2,4500.1,17.47343012]
[1758046885196,0.002,4500.2,4500.1,15.99887284]
[1758046886541,0.002,4500.2,4500.1,19.79087284]
[1758046887268,0.002,4500.2,4500.1,22.19087284]
[1758046887628,0.002,4500.2,4500.1,21.71357284]
[1758046887827,0.002,4500.2,4500.1,22.19087284]
[1758046888057,0.002,4500.2,4500.1,24.40883165]
[1758046890164,0.002,4500.2,4500.1,23.47033165]
[1758046892033,0.002,4500.2,4500.1,23.15453165]
[1758046892438,0.2873,4500.2,4500.1,19.44953165]
[1758046892660,0.7559,4500.2,4500.1,23.15453165]
[1758046892832,0.002,4500.2,4500.1,23.47033165]
[1758046893636,0.002,4500.2,4500.1,23.93153165]
[1758046893936,0.002,4500.2,4500.1,23.47033165]
[1758046894340,0.002,4500.2,4500.1,23.93153165]
[1758046894574,0.002,4500.2,4500.1,23.47033165]
[1758046896147,0.2873,4500.2,4500.1,23.15453165]
[1758046896549,0.002,4500.2,4500.1,23.15453165]
[1758046897070,0.002,4500.2,4500.1,23.47033165]
[1758046897286,0.002,4500.2,4500.1,16.43535881]
[1758046897484,0.7568,4500.2,4500.1,15.412]
[1758046898300,2.97892346,4500.2,4500.1,8.707]
[1758046898590,2.97892346,4500.2,4500.1,12.412]
[1758046898779,3.39496683,4500.2,4500.1,12.412]
[1758046899152,3.74864873,4500.2,4500.1,12.412]
[1758046900359,3.74864873,4500.2,4500.1,10.705]
[1758046901606,3.95647463,4500.2,4500.1,7.0]
[1758046902471,2.2222716,4499.9,4499.8,0.001]
[1758046902685,2.63812269,4499.9,4499.8,0.001]
[1758046902890,4.00990521,4499.9,4499.8,0.001]
[1758046907410,4.48806602,4499.9,4499.8,0.001]
[1758046907711,4.00990521,4499.9,4499.8,0.001]
[1758046907921,9.52279886,4499.9,4499.8,0.001]
[1758046908793,9.04462675,4499.9,4499.8,0.001]
[1758046909006,8.83625486,4499.9,4499.8,0.001]
[1758046909171,9.04373454,4499.9,4499.8,0.001]
[1758046909506,8.62877566,4499.9,4499.8,0.001]
[1758046911710,3.12545412,4499.9,4499.8,0.001]
[1758046911936,0.002,4500.2,4499.8,0.778]
[1758046912140,0.002,4500.2,4499.9,0.9385]
[1758046912533,0.002,4500.2,4500.1,0.3158]
[1758046914332,2.33261152,4500.1,4499.8,0.001]
[1758046914569,0.1104,4500.1,4499.8,0.001]
[1758046914870,0.1104,4499.9,4499.8,0.001]
[1758046915167,5.14512154,4499.9,4499.8,0.001]
[1758046915335,5.94513369,4499.9,4499.8,0.001]
[1758046915537,8.62300529,4499.9,4499.8,0.001]
[1758046917385,8.16740529,4499.9,4499.8,0.001]
[1758046917790,8.62300529,4499.9,4499.8,0.001]
[1758046918086,8.62500529,4499.9,4499.8,0.001]
[1758046918689,7.29628375,4499.9,4499.8,0.001]
[1758046918869,7.50379393,4499.9,4499.8,0.001]
[1758046919190,7.71131055,4499.9,4499.8,0.001]
[1758046920668,7.71135584,4499.9,4499.8,0.001]
[1758046926268,8.19043445,4499.9,4499.8,0.001]
[1758046926697,7.71135584,4499.9,4499.8,0.001]
[1758046927206,7.25575584,4499.9,4499.8,0.001]
[1758046927518,7.44982753,4499.9,4499.8,0.7453]
[1758046927666,7.44982753,4499.9,4499.8,0.3014]
[1758046928009,7.44982753,4499.9,4499.8,0.7948]
[1758046928177,3.74382753,4499.9,4499.8,0.7948]
[1758046928378,0.41707209,4499.9,4499.8,0.3014]
[1758046928579,0.002,4499.9,4499.8,1.2387]
[1758046928791,0.002,4499.9,4499.8,1.2609232]
[1758046929104,0.002,4499.9,4499.8,1.2387]
[1758046933229,0.002,4499.9,4499.8,1.82703861]
[1758046933731,0.002,4499.9,4499.8,4.1819828]
[1758046934331,0.002,4499.9,4499.8,7.1819828]
[1758046934520,0.002,4499.9,4499.8,7.1597596]
[1758046937116,0.002,4499.9,4499.8,9.5597596]
[1758046937837,0.002,4499.9,4499.8,10.3517596]
[1758046938957,0.002,4499.9,4499.8,14.0567596]
[1758046941738,0.002,4499.9,4499.8,19.09148114]
[1758046942954,0.002,4499.9,4499.8,24.12620268]
[1758046943140,0.002,4499.9,4499.8,19.09148114]
[1758046957738,0.002,4499.9,4499.8,26.09148114]
[1758046961772,0.101,4499.9,4499.8,10.09973861]
[1758046962069,0.7383,4499.9,4499.8,10.704]
[1758046962454,0.7383,4499.9,4499.8,16.104]
[1758046964088,0.7383,4499.9,4499.8,18.32632099]
[1758046964287,0.7383,4499.9,4499.8,16.104]
[1758046965177,0.101,4499.9,4499.8,18.32632099]
[1758046965786,0.101,4499.9,4499.8,16.104]
[1758046965988,0.7383,4499.9,4499.8,16.104]
[1758046966455,0.5511,4499.9,4499.8,18.32632099]
[1758046966770,0.5511,4499.9,4499.8,9.104]
[1758046966950,0.5511,4499.9,4499.8,11.32632099]
[1758046967608,0.5511,4499.9,4499.8,9.104]
[1758046967889,0.5511,4499.9,4499.8,11.32632099]
[1758046968489,0.5511,4499.9,4499.8,9.104]
[1758046970076,0.5511,4499.9,4499.8,11.32632099]
[1758046972124,0.002,4499.9,4499.8,11.32632099]
[1758046972798,0.002,4499.9,4499.8,11.62832099]
[1758046973095,0.002,4499.9,4499.8,11.43672099]
[1758046975794,0.002,4499.9,4499.8,11.73132099]
[1758046975965,0.002,4499.9,4499.8,14.24739376]
[1758046980289,0.002,4499.9,4499.8,7.07757277]
[1758046980487,0.763,4499.9,4499.8,9.2154]
[1758046980694,0.763,4499.9,4499.8,11.43772099]
[1758046981001,0.002,4499.9,4499.8,11.43772099]
[1758046981215,0.002,4499.9,4499.8,11.73232099]
[1758046982775,0.002,4499.9,4499.8,11.43772099]
[1758046984800,0.2844,4499.9,4499.8,9.2154]
[1758046985002,0.7601,4499.9,4499.8,9.2154]
[1758046985212,0.7601,4499.9,4499.8,3.001]
[1758046985411,2.9879716,4499.9,4499.8,0.001]
[1758046985613,3.32857435,4499.9,4499.8,3.704]
[1758046986180,3.53664773,4499.9,4499.8,3.704]
[1758046986379,3.32857435,4499.9,4499.8,3.704]
[1758046989820,3.74459033,4499.9,4499.8,0.001]
[1758046991647,3.74459033,4499.9,4499.8,0.03353]
[1758046991954,2.22246916,4499.5,4499.4,0.001]
[1758046992121,13.12447556,4499.5,4499.4,0.001]
[1758046992460,14.36468926,4499.5,4499.4,0.001]
[1758046995302,3.86218578,4499.5,4499.4,0.001]
[1758046995506,2.9669561,4499.5,4499.4,0.001]
[1758046996317,3.0659561,4499.5,4499.4,0.001]
[1758046998810,2.9669561,4499.5,4499.4,0.001]
[1758046999745,6.6709561,4499.5,4499.4,0.001]
[1758047000208,7.2456561,4499.5,4499.4,0.001]
[1758047006352,7.4276561,4499.5,4499.4,0.001]
[1758047006553,7.63510344,4499.5,4499.4,0.001]